bitfinex-derivatives/quotes_BTCF0:USTF0_20250130
["timestamp","ask_amount","ask_price","bid_price","bid_amount"]
[1738199827416,0.648519,104270.0,104260.0,0.01809466]
[1738199827917,0.648519,104270.0,104260.0,0.12408066]
[1738199828219,0.287719,104270.0,104260.0,0.12408066]
[1738199828418,0.287719,104270.0,104260.0,0.01809466]
[1738199828620,0.648519,104270.0,104260.0,0.12408066]
[1738199828822,0.648519,104270.0,104260.0,0.01809466]
[1738199829413,0.648519,104270.0,104260.0,0.12408066]
[1738199829822,0.648519,104270.0,104260.0,0.01809466]
[1738199831317,0.287719,104270.0,104260.0,0.01809466]
[1738199831719,0.648519,104270.0,104260.0,0.01809466]
[1738199831918,0.287719,104270.0,104260.0,0.01809466]
[1738199832227,0.648519,104270.0,104260.0,0.01809466]
[1738199832522,0.754505,104270.0,104260.0,0.00214398]
[1738199832926,0.648519,104270.0,104260.0,0.00214398]
[1738199833525,0.694079,104270.0,104260.0,0.00214398]
[1738199834827,0.800065,104270.0,104260.0,0.00214398]
[1738199835032,0.191819,104270.0,104260.0,0.66076698]
[1738199835217,0.255219,104270.0,104260.0,0.66076698]
[1738199835417,0.255219,104270.0,104260.0,0.29996698]
[1738199835628,0.255219,104270.0,104260.0,0.19398098]
[1738199836327,0.255219,104270.0,104260.0,0.00214398]
[1738199837222,0.255219,104270.0,104260.0,0.00114398]
[1738199837419,0.300739,104270.0,104260.0,0.00114398]
[1738199840527,0.661539,104270.0,104260.0,0.00114398]
[1738199841226,0.767525,104270.0,104260.0,0.00114398]
[1738199850832,0.93957266,104270.0,104260.0,0.00114398]
[1738199852531,0.9031807,104270.0,104260.0,0.00114398]
[1738199854023,0.87475941,104270.0,104260.0,0.00114398]
[1738199855336,0.191837,104260.0,104250.0,0.01562645]
[1738199855521,0.53008808,104260.0,104240.0,0.37130352]
[1738199855725,0.29405004,104250.0,104240.0,0.37130352]
[1738199855925,0.65485004,104250.0,104240.0,0.37130352]
[1738199856326,0.68605004,104250.0,104240.0,0.37130352]
[1738199856836,0.32525004,104250.0,104240.0,0.37130352]
[1738199857333,0.32525004,104250.0,104240.0,0.38608975]
[1738199857734,0.32525004,104250.0,104240.0,0.61199844]
[1738199858539,0.191856,104250.0,104240.0,0.97279844]
[1738199858738,0.192856,104250.0,104240.0,1.00529844]
[1738199859237,0.192856,104250.0,104240.0,0.64449844]
[1738199859437,0.192856,104250.0,104240.0,1.00529844]
[1738199859641,0.192856,104250.0,104240.0,0.64449844]
[1738199859942,0.192856,104250.0,104240.0,1.00529844]
[1738199860439,0.192856,104250.0,104240.0,0.61199844]
[1738199860636,0.286856,104250.0,104240.0,0.61199844]
[1738199860835,0.3929036,104250.0,104240.0,0.61199844]
[1738199861141,0.286856,104250.0,104240.0,0.61199844]
[1738199861329,0.192856,104250.0,104240.0,0.61199844]
[1738199861538,0.224156,104250.0,104240.0,0.61199844]
[1738199861730,0.3302036,104250.0,104240.0,0.61199844]
[1738199863144,0.3302036,104250.0,104240.0,0.60199844]
[1738199863636,0.3756836,104250.0,104240.0,0.60199844]
[1738199864639,0.7364836,104250.0,104240.0,0.41012644]
[1738199865137,0.7364836,104250.0,104240.0,0.01478623]
[1738199865338,0.191874,104240.0,104230.0,0.3614635]
[1738199865644,0.3612216,104240.0,104230.0,0.3714635]
[1738199865840,0.3612216,104240.0,104230.0,0.38489371]
[1738199866240,0.3612216,104240.0,104230.0,0.19300571]
[1738199866441,0.3612216,104240.0,104230.0,0.19400571]
[1738199866837,0.255174,104240.0,104230.0,0.19500571]
[1738199867040,0.255174,104240.0,104230.0,0.38689771]
[1738199868646,0.255174,104240.0,104230.0,0.74769771]
[1738199868840,0.222274,104240.0,104230.0,0.74769771]
[1738199869246,0.222274,104240.0,104230.0,2.24769771]
[1738199870144,0.222274,104240.0,104230.0,0.74769771]
[1738199870746,0.222274,104240.0,104230.0,2.24769771]
[1738199870944,0.222274,104240.0,104230.0,0.74769771]
[1738199872147,0.191874,104240.0,104230.0,0.85374531]
[1738199873438,0.191874,104240.0,104230.0,0.74769771]
[1738199874144,0.191874,104240.0,104230.0,0.85374531]
[1738199876047,0.191874,104240.0,104230.0,0.74769771]
[1738199876238,0.237314,104240.0,104230.0,0.74769771]
[1738199879351,0.237314,104240.0,104230.0,0.57826619]
[1738199880540,0.191874,104240.0,104230.0,0.57826619]
[1738199880745,0.237314,104240.0,104230.0,0.57826619]
[1738199883153,0.237314,104240.0,104230.0,0.9736064]
[1738199883350,0.237314,104240.0,104230.0,1.04321982]
[1738199887054,0.237314,104240.0,104230.0,0.9736064]
[1738199890063,0.269014,104240.0,104230.0,0.9736064]
[1738199890259,0.33862742,104240.0,104230.0,0.9736064]
[1738199890457,0.76904084,104240.0,104230.0,0.4209144]
[1738199890658,0.36280084,104240.0,104230.0,0.4209144]
[1738199890855,0.191892,104230.0,104220.0,0.28431618]
[1738199891060,0.32610542,104230.0,104220.0,0.65511618]
[1738199891565,0.32610542,104230.0,104220.0,0.84702718]
[1738199891858,0.32610542,104230.0,104220.0,0.86096617]
[1738199892261,0.32610542,104230.0,104220.0,0.86696617]
[1738199892667,0.3626058,104230.0,104220.0,0.86696617]
[1738199894563,0.256492,104230.0,104220.0,0.86696617]
[1738199896665,0.3626058,104230.0,104220.0,0.86696617]
[1738199896867,0.47760878,104230.0,104220.0,0.58264999]
[1738199899880,0.47760878,104230.0,104220.0,0.02993899]
[1738199900064,0.83840878,104230.0,104220.0,0.02993899]
[1738199900266,0.94452258,104230.0,104220.0,0.01993899]
[1738199900466,0.94452258,104230.0,104210.0,0.00014398]
[1738199900467,0.191911,104220.0,104210.0,0.00014398]
[1738199900662,0.3739248,104220.0,104210.0,0.19207298]
[1738199901065,0.3739248,104220.0,104210.0,0.55287298]
[1738199901461,0.0759,104220.0,104210.0,0.55287298]
[1738199901662,0.0759,104220.0,104210.0,0.66898678]
[1738199902055,0.0759,104220.0,104210.0,0.56287298]
[1738199902457,0.001,104220.0,104210.0,0.71696878]
[1738199903063,0.11500298,104230.0,104220.0,0.191911]
[1738199903358,0.11500298,104230.0,104220.0,0.6688248]
[1738199903973,0.11500298,104230.0,104220.0,0.562711]
[1738199904166,0.11500298,104230.0,104220.0,0.6688248]
[1738199904568,0.11500298,104230.0,104220.0,0.563711]
[1738199905267,0.11500298,104230.0,104220.0,0.566711]
[1738199905469,0.14810298,104230.0,104220.0,0.566711]
[1738199905972,0.14810298,104230.0,104220.0,0.563711]
[1738199906573,0.14810298,104230.0,104220.0,0.562711]
[1738199906973,0.0331,104230.0,104220.0,0.562711]
[1738199907160,0.3909355,104240.0,104220.0,0.3708]
[1738199907364,0.1809185,104240.0,104230.0,0.6588058]
[1738199907564,0.1355585,104240.0,104230.0,0.6688058]
[1738199907769,0.11514696,104240.0,104230.0,0.6688058]
[1738199911274,0.00014398,104240.0,104230.0,0.68185947]
[1738199915076,0.11500298,104260.0,104230.0,0.48996747]
[1738199915389,0.11500298,104260.0,104250.0,0.6587698]
[1738199915579,0.11500298,104260.0,104250.0,1.0295698]
[1738199915979,0.11500298,104260.0,104250.0,0.923456]
[1738199916679,0.12000298,104260.0,104250.0,0.923456]
[1738199916883,0.12000298,104260.0,104250.0,1.0295698]
[1738199917079,0.12200298,104260.0,104250.0,0.923456]
[1738199918180,0.12200298,104260.0,104250.0,1.0295698]
[1738199918381,0.12200298,104260.0,104250.0,0.923456]
[1738199919582,0.12200298,104260.0,104250.0,1.0295698]
[1738199919883,0.007,104260.0,104250.0,1.0295698]
[1738199920573,0.007,104260.0,104250.0,0.923456]
[1738199921180,0.198837,104260.0,104250.0,0.923456]
[1738199923784,0.198837,104260.0,104250.0,0.93638556]
[1738199924381,0.198837,104260.0,104250.0,1.04249936]
[1738199926191,0.198837,104260.0,104250.0,0.93638556]
[1738199929992,0.7110308,104260.0,104250.0,0.02292956]
[1738199932394,0.7110308,104260.0,104250.0,0.01292956]
[1738199932685,0.191856,104250.0,104240.0,0.00014398]
[1738199932886,0.7549698,104250.0,104240.0,0.00014398]
[1738199933983,0.3941698,104250.0,104240.0,0.00014398]
[1738199934897,0.3951698,104250.0,104240.0,0.00014398]
[1738199935300,0.7579698,104250.0,104240.0,0.00014398]
[1738199935495,0.191874,104240.0,104230.0,0.552686]
[1738199935799,0.2979878,104240.0,104230.0,0.562686]
[1738199936096,0.2979878,104240.0,104230.0,0.57473215]
[1738199937096,0.191874,104240.0,104230.0,0.57473215]
[1738199938887,0.33349098,104250.0,104230.0,0.68084595]
[1738199939396,0.11500298,104240.0,104230.0,0.68084595]
[1738199944614,0.11500298,104240.0,104230.0,0.57473215]
[1738199944803,0.64075351,104250.0,104230.0,0.57473215]
[1738199945007,0.53463971,104250.0,104240.0,0.3608]
[1738199945191,0.53463971,104250.0,104240.0,0.562674]
[1738199946707,0.53763971,104250.0,104240.0,0.562674]
[1738199947201,0.64375351,104250.0,104240.0,0.562674]
[1738199948706,0.52875053,104250.0,104240.0,0.562674]
[1738199949695,0.42263673,104250.0,104240.0,0.562674]
[1738199952414,0.42263673,104250.0,104240.0,0.201874]
[1738199952801,0.42263673,104250.0,104240.0,0.562674]
[1738199953005,0.53763971,104250.0,104240.0,0.562674]
[1738199956707,0.49235971,104250.0,104240.0,0.562674]
[1738199956906,0.20429271,104250.0,104240.0,0.6687878]
[1738199957105,0.20429271,104250.0,104240.0,0.7617878]
[1738199958614,0.20429271,104250.0,104240.0,0.79482838]
[1738199960507,0.20429271,104250.0,104240.0,0.76169665]
[1738199961019,0.00314398,104250.0,104240.0,0.98808338]
[1738199963518,0.08614575,104260.0,104250.0,0.4039013]
[1738199963718,0.08614575,104260.0,104250.0,0.8447013]
[1738199964815,0.08714575,104260.0,104250.0,0.8447013]
[1738199965617,0.00014398,104270.0,104260.0,0.191837]
[1738199965810,0.00014398,104270.0,104260.0,0.75555965]
[1738199966324,0.00014398,104270.0,104260.0,2.25555965]
[1738199966615,0.25848538,104280.0,104270.0,0.191819]
[1738199966803,0.25848538,104280.0,104270.0,0.65864165]
[1738199968220,0.25848538,104280.0,104270.0,0.66864165]
[1738199968611,0.25848538,104280.0,104270.0,0.66964165]
[1738199968810,0.26148538,104280.0,104270.0,0.66964165]
[1738199971021,0.003,104280.0,104270.0,0.66964165]
[1738199973019,0.003,104280.0,104270.0,0.68155155]
[1738199974222,0.0036,104290.0,104280.0,0.1918]
[1738199974411,0.31110298,104300.0,104280.0,0.8066453]
[1738199974717,0.20186858,104330.0,104320.0,0.191727]
[1738199974926,0.20186858,104330.0,104320.0,0.65854965]
[1738199975113,0.00143845,104330.0,104320.0,0.65854965]
[1738199975321,0.19314645,104330.0,104320.0,0.552527]
[1738199975911,0.19314645,104330.0,104320.0,0.3608]
[1738199976107,0.19614645,104330.0,104320.0,0.3618]
[1738199976311,0.3021691,104330.0,104320.0,0.001]
[1738199976914,0.6629691,104330.0,104320.0,0.001]
[1738199977315,0.7082091,104330.0,104320.0,0.001]
[1738199977824,0.3474091,104330.0,104320.0,0.001]
[1738199978014,0.7082091,104330.0,104320.0,0.001]
[1738199982716,0.60218645,104330.0,104320.0,0.192727]
[1738199982922,0.36523845,104330.0,104320.0,0.29874965]
[1738199983216,0.36523845,104330.0,104320.0,0.192727]
[1738199983423,0.00443845,104330.0,104320.0,0.553527]
[1738199984223,0.00443845,104330.0,104320.0,0.65954965]
[1738199988637,0.00143845,104330.0,104320.0,0.65854965]
[1738199989438,0.00143845,104330.0,104320.0,0.70854965]
[1738199991459,0.191682,104350.0,104340.0,0.19169]
[1738199991636,0.0956,104360.0,104340.0,0.82762265]
[1738199991829,0.287256,104360.0,104350.0,0.65849465]
[1738199993555,0.287256,104360.0,104350.0,0.552472]
[1738199994137,0.39327865,104360.0,104350.0,0.553472]
[1738199994437,0.75407865,104360.0,104350.0,0.001]
[1738199994638,0.75407865,104360.0,104350.0,0.002]
[1738199995631,0.43847865,104360.0,104350.0,0.01344244]
[1738199995933,0.43847865,104360.0,104350.0,0.002]
[1738199996131,0.332456,104360.0,104350.0,0.002]
[1738199996840,0.0956,104360.0,104350.0,0.66049465]
[1738199997140,0.191638,104370.0,104350.0,0.46882265]
[1738199997331,0.223538,104370.0,104360.0,0.65847565]
[1738199997525,0.0319,104370.0,104360.0,0.552453]
[1738199998433,0.0319,104370.0,104360.0,0.191653]
[1738199998762,0.223535,104370.0,104360.0,0.552453]
[1738199999437,0.53794793,104370.0,104360.0,0.552453]
[1738200000143,0.191653,104360.0,104350.0,0.37234934]
[1738200000335,0.36157565,104360.0,104350.0,0.20321734]
[1738200001333,0.72237565,104360.0,104350.0,0.01154934]
[1738200001541,0.191697,104340.0,104330.0,0.552506]
[1738200001735,0.191697,104340.0,104330.0,0.563595]
[1738200001736,0.34291965,104340.0,104330.0,0.563595]
[1738200002238,0.236897,104340.0,104330.0,0.563595]
[1738200002841,0.43711965,104340.0,104330.0,0.011089]
[1738200003142,0.43711965,104340.0,104320.0,0.6910833]
[1738200003337,0.331097,104340.0,104320.0,0.79710595]
[1738200003733,0.43711965,104340.0,104320.0,0.79710595]
[1738200003936,0.39191965,104340.0,104320.0,0.79710595]
[1738200004132,0.39191965,104340.0,104320.0,0.55266598]
[1738200004333,0.39191965,104340.0,104320.0,0.65868863]
[1738200004634,0.285897,104340.0,104320.0,0.65868863]
[1738200005251,0.285897,104340.0,104320.0,0.65968863]
[1738200005441,0.285897,104340.0,104320.0,0.6708435]
[1738200005645,0.39191965,104340.0,104320.0,0.6708435]
[1738200006348,0.39191965,104340.0,104320.0,0.6698435]
[1738200006534,0.39191965,104340.0,104320.0,0.6708435]
[1738200008240,0.191708,104330.0,104320.0,0.56482085]
[1738200008434,0.191708,104330.0,104320.0,0.37209885]
[1738200008943,0.29773065,104330.0,104320.0,0.37209885]
[1738200009163,0.29773065,104330.0,104320.0,0.37309885]
[1738200009551,0.191708,104330.0,104320.0,0.37309885]
[1738200009937,0.70373065,104330.0,104320.0,0.00114398]
[1738200011039,0.191745,104310.0,104300.0,0.191761]
[1738200011334,0.29776765,104310.0,104300.0,0.191761]
[1738200011542,0.191764,104300.0,104290.0,0.78040067]
[1738200011742,0.33038665,104300.0,104290.0,0.79176454]
[1738200011943,0.224364,104300.0,104290.0,0.79176454]
[1738200012951,0.224364,104300.0,104290.0,0.79876454]
[1738200013139,0.224364,104300.0,104290.0,0.57237781]
[1738200013442,0.33038665,104300.0,104290.0,0.57237781]
[1738200013944,0.37558665,104300.0,104290.0,0.57437781]
[1738200014147,0.37558665,104300.0,104290.0,0.02180181]
[1738200014336,0.76878665,104300.0,104290.0,0.009]
[1738200014536,0.191782,104290.0,104280.0,0.16978101]
[1738200014735,0.68860465,104290.0,104280.0,0.16930101]
[1738200016248,0.68860465,104290.0,104280.0,0.17330101]
[1738200017147,0.68860465,104290.0,104280.0,0.00514398]
[1738200022247,0.266982,104290.0,104280.0,0.19694398]
[1738200022546,0.0452,104290.0,104280.0,0.55774398]
[1738200022756,0.0452,104290.0,104280.0,0.58994398]
[1738200022940,0.0452,104290.0,104280.0,0.61994398]
[1738200023750,0.36278865,104300.0,104280.0,0.61994398]
[1738200023948,0.0452,104290.0,104280.0,0.61994398]
[1738200024552,0.36278865,104300.0,104290.0,0.191782]
[1738200024857,0.40798865,104300.0,104290.0,0.191782]
[1738200025046,0.40798865,104300.0,104290.0,0.552582]
[1738200025448,0.0452,104300.0,104290.0,0.552582]
[1738200026455,0.5162316,104310.0,104300.0,0.191764]
[1738200026755,0.41060895,104310.0,104300.0,0.552564]
[1738200027651,0.21969895,104310.0,104300.0,0.552564]
[1738200027860,0.18949895,104310.0,104300.0,0.552564]
[1738200028357,0.19149895,104310.0,104300.0,0.552564]
[1738200028951,0.18849895,104310.0,104300.0,0.552564]
[1738200029248,0.14305895,104310.0,104300.0,0.552564]
[1738200029443,0.14305895,104310.0,104300.0,0.69148665]
[1738200030757,0.14305895,104310.0,104300.0,0.69248665]
[1738200031360,0.14305895,104310.0,104300.0,0.69148665]
[1738200031558,0.14305895,104310.0,104300.0,2.19448665]
[1738200032060,0.14305895,104310.0,104300.0,2.19148665]
[1738200033355,0.14305895,104310.0,104300.0,0.69148665]
[1738200035363,0.14305895,104310.0,104300.0,0.70218569]
[1738200036559,0.14305895,104310.0,104300.0,0.73368569]
[1738200037250,0.14305895,104310.0,104300.0,0.77368569]
[1738200038451,0.14305895,104310.0,104300.0,0.41288569]
[1738200038647,0.14305895,104310.0,104300.0,1.13448569]
[1738200039055,0.4408266,104310.0,104300.0,1.02846304]
[1738200039261,0.90764925,104310.0,104300.0,0.01069904]
[1738200039463,0.77990425,104310.0,104290.0,0.3608]
[1738200039667,0.34410665,104300.0,104290.0,0.552582]
[1738200039855,0.238084,104300.0,104290.0,0.552582]
[1738200040459,0.04632,104300.0,104290.0,0.65860465]
[1738200040658,0.04632,104300.0,104290.0,0.73930465]
[1738200040863,0.14305895,104310.0,104300.0,0.191764]
[1738200041057,0.14305895,104310.0,104300.0,0.69148665]
[1738200041668,0.14305895,104310.0,104300.0,0.72358665]
[1738200042164,0.00014398,104310.0,104300.0,0.72358665]
[1738200042472,0.00314398,104310.0,104300.0,0.72358665]
[1738200042763,0.00314398,104310.0,104300.0,0.617564]
[1738200042957,0.00414398,104310.0,104300.0,0.585464]
[1738200044560,0.06704398,104310.0,104300.0,0.552564]
[1738200045065,0.06704398,104310.0,104300.0,0.56331774]
[1738200045859,0.25878898,104310.0,104300.0,0.56331774]
[1738200046254,0.25878898,104310.0,104300.0,0.01075374]
[1738200046460,0.25878898,104310.0,104290.0,0.552571]
[1738200046660,0.25878898,104310.0,104300.0,0.191764]
[1738200047669,0.25578898,104310.0,104300.0,0.191764]
[1738200047967,0.25578898,104310.0,104300.0,0.552564]
[1738200048363,0.25878898,104310.0,104300.0,0.552564]
[1738200050260,0.36481163,104310.0,104300.0,0.552564]
[1738200051156,0.36481163,104310.0,104300.0,0.3608]
[1738200051378,0.191764,104300.0,104290.0,0.2025703]
[1738200051570,0.37488665,104300.0,104290.0,0.2025703]
[1738200054669,0.268864,104300.0,104290.0,0.5633703]
[1738200055172,0.0771,104300.0,104290.0,0.66939295]
[1738200055373,0.0771,104300.0,104290.0,0.5633703]
[1738200057377,0.0771,104300.0,104290.0,0.73252733]
[1738200058576,0.0319,104300.0,104290.0,0.73252733]
[1738200058779,0.32968665,104300.0,104290.0,0.73252733]
[1738200059677,0.32968665,104300.0,104290.0,0.37172733]
[1738200061068,0.37548665,104300.0,104290.0,0.37172733]
[1738200064785,0.37548665,104300.0,104290.0,0.2025703]
[1738200068279,0.73628665,104300.0,104290.0,0.0107933]
[1738200068481,0.54452265,104300.0,104280.0,0.36109801]
[1738200068683,0.191782,104290.0,104280.0,0.36109801]
[1738200069192,0.29780465,104290.0,104280.0,0.16930101]
[1738200069379,0.72160465,104290.0,104280.0,0.18009385]
[1738200069790,0.72160465,104290.0,104280.0,0.18309385]
[1738200070580,0.72160465,104290.0,104280.0,0.18409385]
[1738200071296,0.72160465,104290.0,104280.0,0.18009385]
[1738200071482,0.72160465,104290.0,104280.0,0.18409385]
[1738200071784,0.76680465,104290.0,104280.0,0.18409385]
[1738200072192,0.40600465,104290.0,104280.0,0.18409385]
[1738200072383,0.76680465,104290.0,104280.0,0.18409385]
[1738200073982,0.8812371,104290.0,104280.0,0.01493682]
[1738200078294,0.4752371,104290.0,104280.0,0.01493682]
[1738200078494,0.5204371,104290.0,104280.0,0.20673682]
[1738200079891,0.5204371,104290.0,104280.0,0.01493682]
[1738200080193,0.8812371,104290.0,104280.0,0.01493682]
[1738200080397,0.8812371,104290.0,104280.0,9.8e-07]
[1738200080398,0.98725975,104290.0,104280.0,9.8e-07]
[1738200080598,0.98725975,104290.0,104250.0,7.6e-07]
[1738200080599,0.84342375,104290.0,104250.0,7.6e-07]
[1738200080790,0.9336453,104260.0,104240.0,0.28431618]
[1738200081101,0.9336453,104260.0,104220.0,1.39424875]
[1738200081102,0.191892,104230.0,104220.0,1.39424875]
[1738200081287,1.1255373,104230.0,104220.0,1.39281006]
[1738200082596,1.1255373,104230.0,104220.0,1.39581006]
[1738200083394,1.4255373,104230.0,104220.0,1.39581006]
[1738200083603,1.4255373,104230.0,104220.0,1.13034342]
[1738200083903,1.4255373,104230.0,104220.0,1.13134342]
[1738200084498,1.4255373,104230.0,104220.0,1.13034342]
[1738200084700,1.4275373,104230.0,104220.0,1.12734342]
[1738200084903,1.4285373,104230.0,104220.0,1.12734342]
[1738200085510,1.4335373,104230.0,104220.0,0.001]
[1738200085703,1.44400068,104230.0,104220.0,0.001]
[1738200085915,1.03797803,104230.0,104220.0,0.001]
[1738200086204,1.14400068,104230.0,104220.0,0.001]
[1738200086607,1.28691565,104230.0,104220.0,0.001]
[1738200088305,0.191911,104220.0,104210.0,0.00014398]
[1738200088501,0.8791763,104220.0,104210.0,0.00014398]
[1738200089608,0.8821763,104220.0,104210.0,0.00014398]
[1738200089814,0.8831763,104220.0,104210.0,0.00014398]
[1738200090009,0.9145763,104220.0,104210.0,0.00014398]
[1738200090805,1.02846459,104220.0,104210.0,0.00014398]
[1738200091007,0.46802194,104220.0,104210.0,0.19207298]
[1738200091707,0.46802194,104220.0,104210.0,0.00014398]
[1738200092008,0.93484459,104220.0,104210.0,0.00014398]
[1738200093105,0.96604459,104220.0,104210.0,0.00014398]
[1738200101214,0.191929,104210.0,104200.0,0.09997017]
[1738200101416,0.29795165,104210.0,104200.0,0.09997017]
[1738200102212,0.29795165,104210.0,104200.0,0.29191817]
[1738200102518,0.243289,104210.0,104200.0,0.68341817]
[1738200102716,0.243289,104210.0,104200.0,0.56295528]
[1738200103215,0.243289,104210.0,104200.0,0.20215528]
[1738200103715,0.243289,104210.0,104200.0,0.56295528]
[1738200104417,0.243289,104210.0,104200.0,0.20215528]
[1738200104716,0.243289,104210.0,104200.0,0.56295528]
[1738200104911,0.243289,104210.0,104200.0,0.20215528]
[1738200105113,0.44269893,104210.0,104200.0,0.56295528]
[1738200105312,0.39133893,104210.0,104200.0,0.56295528]
[1738200105719,0.39133893,104210.0,104200.0,0.3915]
[1738200106421,0.19940993,104210.0,104200.0,0.68947065]
[1738200106813,0.39133893,104210.0,104200.0,0.68947065]
[1738200107120,0.30587753,104210.0,104200.0,0.583448]
[1738200107918,0.11394853,104210.0,104200.0,0.68947065]
[1738200108219,0.30587753,104210.0,104200.0,0.68947065]
[1738200108514,0.30587753,104210.0,104200.0,0.583448]
[1738200109725,0.11394853,104210.0,104200.0,0.583448]
[1738200110113,0.30587753,104210.0,104200.0,0.583448]
[1738200111217,0.33436467,104210.0,104200.0,0.583448]
[1738200111720,0.33436467,104210.0,104200.0,0.613648]
[1738200112325,0.14243567,104210.0,104200.0,0.71967065]
[1738200112525,0.14243567,104210.0,104200.0,0.75037065]
[1738200114225,0.04665719,104210.0,104200.0,0.55842265]
[1738200114525,0.04665719,104210.0,104200.0,0.75037065]
[1738200116625,0.04665719,104210.0,104200.0,0.79037065]
[1738200117225,0.04665719,104210.0,104200.0,0.75037065]
[1738200118019,0.04665719,104210.0,104190.0,0.37162474]
[1738200118020,0.15267984,104210.0,104190.0,0.37162474]
[1738200118221,0.29797065,104200.0,104190.0,0.56358774]
[1738200119026,0.191948,104200.0,104190.0,0.56358774]
[1738200119223,0.191948,104200.0,104190.0,0.01082474]
[1738200119224,0.29797065,104200.0,104190.0,0.01082474]
[1738200119430,0.29797065,104200.0,104190.0,0.01482474]
[1738200119727,0.34917065,104200.0,104190.0,0.01482474]
[1738200120125,0.34917065,104200.0,104190.0,0.01382474]
[1738200120332,0.34917065,104200.0,104190.0,0.01482474]
[1738200120521,0.243148,104200.0,104190.0,0.20679074]
[1738200121622,0.22327912,104200.0,104190.0,0.67361339]
[1738200121824,0.22327912,104200.0,104190.0,0.70551339]
[1738200122727,0.22327912,104200.0,104190.0,0.73841339]
[1738200124628,0.22362813,104200.0,104190.0,0.73841339]
[1738200129231,0.36735023,104200.0,104190.0,0.73841339]
[1738200130626,0.25455898,104220.0,104210.0,0.191929]
[1738200130831,0.25455898,104220.0,104210.0,0.65875165]
[1738200131521,0.06264398,104220.0,104210.0,0.65875165]
[1738200131724,0.00014398,104220.0,104210.0,1.01955165]
[1738200131937,0.00114398,104220.0,104210.0,1.08105165]
[1738200133027,0.00414398,104220.0,104210.0,1.08105165]
[1738200134131,0.00414398,104220.0,104210.0,1.08405165]
[1738200134132,0.00114398,104220.0,104210.0,1.08405165]
[1738200134840,0.00014398,104220.0,104210.0,1.08505165]
[1738200135046,0.00014398,104220.0,104210.0,1.13505165]
[1738200135340,0.60068107,104230.0,104220.0,0.191911]
[1738200135533,0.60068107,104230.0,104220.0,0.65873365]
[1738200135923,0.60068107,104230.0,104220.0,0.7647563]
[1738200136127,0.60068107,104230.0,104220.0,0.65873365]
[1738200136345,0.60068107,104230.0,104220.0,0.8147563]
[1738200136534,0.60068107,104230.0,104220.0,0.7647563]
[1738200136735,0.60368107,104230.0,104220.0,0.7647563]
[1738200136922,0.60368107,104230.0,104220.0,0.65873365]
[1738200137642,0.60368107,104230.0,104220.0,2.15873365]
[1738200137829,0.20502547,104230.0,104220.0,2.15873365]
[1738200138037,0.20502547,104230.0,104220.0,0.552711]
[1738200138238,0.191911,104220.0,104210.0,0.20238707]
[1738200138538,0.39213365,104220.0,104210.0,0.20239907]
[1738200138746,0.286111,104220.0,104210.0,0.20239907]
[1738200138929,0.286111,104220.0,104210.0,0.56319907]
[1738200139634,0.0942,104220.0,104210.0,0.66922172]
[1738200141638,0.29522547,104220.0,104210.0,0.66922172]
[1738200141943,0.20102547,104220.0,104210.0,0.66922172]
[1738200142351,0.20102547,104220.0,104210.0,2.20922172]
[1738200142835,0.20102547,104220.0,104210.0,2.24182172]
[1738200144353,0.08615377,104230.0,104220.0,0.191911]
[1738200144655,0.27804577,104230.0,104220.0,0.552711]
[1738200145546,0.27904577,104230.0,104220.0,0.552711]
[1738200146452,0.28204577,104230.0,104220.0,0.552711]
[1738200146650,0.09015377,104230.0,104220.0,0.552711]
[1738200146949,0.20502547,104230.0,104220.0,0.65873365]
[1738200148237,0.20502547,104230.0,104220.0,0.8456563]
[1738200150962,0.004,104230.0,104220.0,0.8456563]
[1738200151653,0.004,104230.0,104220.0,2.3456563]
[1738200151856,0.004,104230.0,104220.0,2.23963365]
[1738200152356,0.004,104230.0,104220.0,2.3456563]
[1738200154549,0.29656945,104240.0,104220.0,2.3456563]
[1738200154753,0.28834683,104260.0,104230.0,0.46682265]
[1738200154957,0.17203699,104260.0,104250.0,1.1255013]
[1738200155153,0.13907754,104260.0,104250.0,1.1755013]
[1738200155354,0.12710492,104260.0,104250.0,1.1755013]
[1738200155554,0.12710492,104260.0,104250.0,1.2411013]
[1738200155747,0.12710492,104260.0,104250.0,1.1911013]
[1738200155949,0.10859288,104260.0,104250.0,1.2311013]
[1738200156155,0.11759288,104260.0,104250.0,1.2321013]
[1738200156649,0.10859288,104260.0,104250.0,1.2311013]
[1738200156854,0.11759288,104260.0,104250.0,1.2321013]
[1738200157246,0.11759288,104260.0,104250.0,2.7321013]
[1738200157559,0.01,104260.0,104250.0,2.7321013]
[1738200158556,0.01,104260.0,104250.0,2.6921013]
[1738200158761,0.01,104260.0,104250.0,2.8021013]
[1738200159355,0.01,104260.0,104250.0,2.81232909]
[1738200164157,0.00014398,104270.0,104260.0,0.191837]
[1738200164466,0.00014398,104270.0,104260.0,0.76865965]
[1738200165863,0.00114398,104270.0,104260.0,0.76965965]
[1738200166064,0.00114398,104270.0,104260.0,0.77065965]
[1738200166867,0.00014398,104270.0,104260.0,0.77065965]
[1738200167971,0.00014398,104270.0,104260.0,0.77465965]
[1738200175676,0.00014398,104270.0,104260.0,2.27465965]
[1738200181174,0.00014398,104270.0,104260.0,2.21465965]
[1738200181673,0.00014398,104270.0,104260.0,0.71465965]
[1738200182178,0.00014398,104270.0,104260.0,2.21465965]
[1738200183784,0.3150364,104290.0,104260.0,2.1598453]
[1738200183982,0.31176249,104290.0,104280.0,1.1254453]
[1738200184173,0.31176249,104290.0,104280.0,1.21942265]
[1738200185083,0.31176249,104290.0,104280.0,1.01942265]
[1738200186382,0.31276249,104290.0,104280.0,1.01942265]
[1738200187478,0.31276249,104290.0,104280.0,2.51942265]
[1738200187680,0.21947343,104290.0,104280.0,2.51942265]
[1738200189776,0.51727808,104290.0,104280.0,2.4134]
[1738200189975,0.51727808,104290.0,104280.0,0.9134]
[1738200190885,0.41125543,104290.0,104280.0,0.9134]
[1738200191084,0.21947343,104290.0,104280.0,0.9134]
[1738200191273,0.21947343,104290.0,104280.0,1.01942265]
[1738200192085,0.21947343,104290.0,104280.0,1.06942265]
[1738200192800,0.21947343,104290.0,104280.0,1.01942265]
[1738200193287,0.21947343,104290.0,104280.0,1.1754453]
[1738200193480,0.21947343,104290.0,104280.0,1.2074453]
[1738200193883,0.21947343,104290.0,104280.0,1.21759502]
[1738200195075,0.001,104290.0,104280.0,1.21759502]
[1738200195987,0.001,104290.0,104280.0,2.71759502]
[1738200196680,0.001,104290.0,104280.0,1.11157237]
[1738200199186,0.001,104290.0,104280.0,1.02957237]
[1738200199992,0.001,104290.0,104280.0,1.08957237]
[1738200200981,0.001,104290.0,104280.0,1.02957237]
[1738200201993,0.001,104290.0,104280.0,1.07957237]